fUST/lending_fUST_20251231
["ID","MTS","AMOUNT","RATE_DAILY","PERIOD"]
[400146364,1767153042072,-1000.0,0.00014247,2]
[400146365,1767153042081,-1000.0,0.00014247,2]
[400146366,1767153042091,-1000.0,0.00014247,2]
[400146367,1767153042100,-1000.0,0.00014247,2]
[400146368,1767153042110,-1000.0,0.00014247,2]
[400146369,1767153042119,-1000.0,0.00014247,2]
[400146370,1767153042129,-941.53284855,0.00014247,2]
[400146371,1767153042139,-1000.0,0.00014247,2]
[400146372,1767153042149,-295.43360933,0.00014247,2]
[400146373,1767153042158,-1000.0,0.00014247,2]
[400146374,1767153042168,-454.65827101,0.00014247,2]
[400146375,1767153042179,-1000.0,0.00014247,2]
[400146376,1767153042189,-1000.0,0.00014247,2]
[400146377,1767153042199,-1000.0,0.00014247,2]
[400146378,1767153042209,-1000.0,0.00014247,2]
[400146379,1767153042219,-1000.0,0.00014247,2]
[400146380,1767153042229,-1000.0,0.00014247,2]
[400146381,1767153042239,-1500.0,0.00014368,2]
[400146382,1767153042248,-1506.37696416,0.00014368,2]
[400146383,1767153042258,-561.98334321,0.00014368,2]
[400146384,1767153042268,-1252.44576455,0.00014368,2]
[400146385,1767153042278,-1500.0,0.00014368,2]
[400146386,1767153042288,-1500.0,0.00014368,2]
[400146387,1767153042298,-1500.0,0.00014368,2]
[400146388,1767153042307,-1282.65977069,0.00014368,2]
[400146389,1767153042317,-1500.0,0.00014368,2]
[400146390,1767153042327,-1500.0,0.00014368,2]
[400146391,1767153042336,-1500.0,0.00014368,2]
[400146392,1767153042345,-1500.0,0.00014368,2]
[400146393,1767153042355,-1500.0,0.00014368,2]
[400146394,1767153042364,-1500.0,0.00014368,2]
[400146395,1767153042374,-1500.0,0.00014368,2]
[400146396,1767153042384,-1500.0,0.00014368,2]
[400146397,1767153042394,-1160.40400037,0.00014368,2]
[400146398,1767153042404,-1500.0,0.00014368,2]
[400146399,1767153042414,-1500.0,0.00014368,2]
[400146400,1767153042423,-1500.0,0.00014368,2]
[400146401,1767153042432,-696.20087533,0.00014368,2]
[400146402,1767153042442,-1500.0,0.00014368,2]
[400146403,1767153042452,-1500.0,0.00014368,2]
[400146404,1767153042461,-190.31177109,0.00014368,2]
[400146405,1767153042471,-1500.0,0.00014368,2]
[400146407,1767153042481,-1500.0,0.00014368,2]
[400146409,1767153042491,-1324.83546284,0.00014368,2]
[400146412,1767153042501,-750.79014339,0.00014368,2]
[400146414,1767153042511,-1500.0,0.00014368,2]
[400146415,1767153042520,-349.3977641,0.00014368,2]
[400146416,1767153042529,-1500.0,0.00014368,2]
[400146417,1767153042539,-1500.0,0.00014368,2]
[400146418,1767153042548,-1500.0,0.00014368,2]
[400146419,1767153042558,-1500.0,0.00014368,2]
[400146420,1767153042567,-1500.0,0.00014368,2]
[400146421,1767153042577,-1500.0,0.00014368,2]
[400146422,1767153042586,-1500.0,0.00014368,2]
[400146423,1767153042596,-1500.0,0.00014368,2]
[400146424,1767153042728,-1500.0,0.00014368,2]
[400146425,1767153042738,-1500.0,0.00014368,2]
[400146426,1767153042748,-864.0,0.0001455,2]
[400146427,1767153042758,-900.0,0.00014768,2]
[400146428,1767153042767,-1500.0,0.00014795,2]
[400146429,1767153042776,-1500.0,0.00014795,2]
[400146430,1767153042785,-1500.0,0.00014795,2]
[400146431,1767153042795,-1500.0,0.00014795,2]
[400146432,1767153042804,-1371.80562161,0.00014795,2]
[400146433,1767153042813,-1500.0,0.00014795,2]
[400146434,1767153042822,-1500.0,0.00014795,2]
[400146435,1767153042831,-1500.0,0.00014795,2]
[400146436,1767153042841,-1500.0,0.00014795,2]
[400146437,1767153042850,-1500.0,0.00014795,2]
[400146438,1767153042860,-1500.0,0.00014795,2]
[400146439,1767153042869,-1500.0,0.00014795,2]
[400146440,1767153042878,-662.55448324,0.00014795,2]
[400146441,1767153042887,-1500.0,0.00014795,2]
[400146442,1767153042896,-614.96936602,0.00014795,2]
[400146443,1767153042907,-1500.0,0.00014795,2]
[400146444,1767153042916,-463.63501052,0.00014795,2]
[400146445,1767153042925,-1500.0,0.00014795,2]
[400146446,1767153042935,-1500.0,0.00014795,2]
[400146447,1767153042944,-1078.13053233,0.00014795,2]
[400146448,1767153042953,-1500.0,0.00014795,2]
[400146449,1767153042963,-1500.0,0.00014795,2]
[400146450,1767153042972,-1500.0,0.00014795,2]
[400146451,1767153042981,-1500.0,0.00014795,2]
[400146452,1767153042990,-1500.0,0.00014795,2]
[400146453,1767153043000,-1500.0,0.00014795,2]
[400146454,1767153043010,-1500.0,0.00014795,2]
[400146455,1767153043019,-1500.0,0.00014795,2]
[400146456,1767153043028,-524.36073826,0.00014795,2]
[400146457,1767153043037,-1011.86637987,0.00014795,2]
[400146458,1767153043048,-1500.0,0.00014795,2]
[400146459,1767153043057,-1500.0,0.00014795,2]
[400146460,1767153043066,-1500.0,0.00014795,2]
[400146461,1767153043075,-1136.51090941,0.00014795,2]
[400146462,1767153043085,-1500.0,0.00014795,2]
[400146463,1767153043094,-1500.0,0.00014795,2]
[400146464,1767153043103,-1500.0,0.00014795,2]
[400146465,1767153043112,-1633.65989049,0.00014795,2]
[400146466,1767153043121,-1500.0,0.00014795,2]
[400146467,1767153043131,-1500.0,0.00014795,2]
[400146468,1767153043140,-1500.0,0.00014795,2]
[400146469,1767153043150,-1425.73894344,0.00014795,2]
[400146470,1767153043159,-1068.53710429,0.00014795,2]
[400146471,1767153043168,-1500.0,0.00014795,2]
[400146472,1767153043178,-1500.0,0.00014795,2]
[400146473,1767153043187,-1500.0,0.00014795,2]
[400146474,1767153043197,-1500.0,0.00014795,2]
[400146475,1767153043206,-1605.24677987,0.00014795,2]
[400146476,1767153043216,-1500.0,0.00014795,2]
[400146477,1767153043225,-342.96834915,0.00014795,2]
[400146478,1767153043235,-1142.5109954,0.00014795,2]
[400146479,1767153043244,-1500.0,0.00014795,2]
[400146480,1767153043253,-1500.0,0.00014795,2]
[400146481,1767153043262,-1500.0,0.00014795,2]
[400146483,1767153043272,-1500.0,0.00014795,2]
[400146484,1767153043281,-1500.0,0.00014795,2]
[400146485,1767153043290,-1500.0,0.00014795,2]
[400146486,1767153043299,-1500.0,0.00014795,2]
[400146487,1767153043308,-1516.82099752,0.00014795,2]
[400146488,1767153043317,-1500.0,0.00014795,2]
[400146489,1767153043326,-1500.0,0.00014795,2]
[400146490,1767153043335,-500.0,0.00014822,2]
[400146491,1767153043344,-500.0,0.00014822,2]
[400146492,1767153043354,-500.0,0.00014822,2]
[400146493,1767153043363,-500.0,0.00014822,2]
[400146494,1767153043374,-500.0,0.00014822,2]
[400146495,1767153043384,-514.84070869,0.00014822,2]
[400146496,1767153043394,-151.50260762,0.00014822,2]
[400146497,1767153043403,-500.0,0.00014822,2]
[400146498,1767153043413,-500.0,0.00014822,2]
[400146499,1767153043422,-151.0,0.00014822,2]
[400146500,1767153043431,-500.0,0.00014822,2]
[400146501,1767153043440,-500.0,0.00014822,2]
[400146502,1767153043449,-500.0,0.00014822,2]
[400146503,1767153043459,-2487.15318209,0.00014822,2]
[400146504,1767153043469,-500.0,0.00014822,2]
[400146505,1767153043479,-151.0,0.00014822,2]
[400146506,1767153043489,-500.0,0.00014822,2]
[400146507,1767153043498,-162.62076672,0.00014822,2]
[400146508,1767153043508,-500.0,0.00014822,2]
[400146509,1767153043518,-500.0,0.00014822,2]
[400146510,1767153043527,-1000.0,0.00014822,2]
[400146511,1767153043537,-670.70315115,0.00014822,2]
[400146512,1767153043547,-151.0,0.00014822,2]
[400146513,1767153043556,-151.0,0.00014822,2]
[400146514,1767153043565,-151.0,0.00014822,2]
[400146515,1767153043575,-151.0,0.00014822,2]
[400146516,1767153043585,-151.0,0.00014822,2]
[400146517,1767153043594,-151.0,0.00014822,2]
[400146518,1767153043604,-151.0,0.00014822,2]
[400146519,1767153043614,-151.0,0.00014822,2]
[400146520,1767153043624,-151.0,0.00014822,2]
[400146521,1767153043634,-151.0,0.00014822,2]
[400146522,1767153043643,-250.0,0.00014822,2]
[400146523,1767153043652,-151.0,0.00014822,2]
[400146524,1767153043662,-250.0,0.00014822,2]
[400146525,1767153043671,-151.0,0.00014822,2]
[400146526,1767153043680,-250.0,0.00014822,2]
[400146527,1767153043689,-151.0,0.00014822,2]
[400146528,1767153043699,-250.0,0.00014822,2]
[400146529,1767153043708,-151.0,0.00014822,2]
[400146530,1767153043718,-250.0,0.00014822,2]
[400146531,1767153043727,-250.0,0.00014822,2]
[400146532,1767153043736,-250.0,0.00014822,2]
[400146533,1767153043746,-250.0,0.00014822,2]
[400146534,1767153043755,-257.39953178,0.00014822,2]
[400146535,1767153043764,-250.0,0.00014822,2]
[400146536,1767153043773,-264.15323111,0.00014822,2]
[400146537,1767153043782,-465.35115233,0.00014916,2]
[400146538,1767153043792,-1035.5590815,0.00014916,2]
[400146539,1767153043801,-2113.45090759,0.00014916,2]
[400146540,1767153043811,-534.26412326,0.00014916,2]
[400146541,1767153043820,-2000.0,0.00014916,2]
[400146542,1767153043830,-2000.0,0.00014916,2]
[400146543,1767153043839,-1818.87701711,0.00014916,2]
[400146544,1767153043849,-239.12450639,0.00014916,2]
[400146545,1767153043858,-2000.0,0.00014916,2]
[400146546,1767153043868,-2000.0,0.00014916,2]
[400146547,1767153043877,-220.45191793,0.00014916,2]
[400146548,1767153043887,-2000.0,0.00014916,2]
[400146549,1767153043897,-2000.0,0.00014916,2]
[400146550,1767153043907,-2000.0,0.00014916,2]
[400146551,1767153043916,-2000.0,0.00014916,2]
[400146552,1767153043925,-2000.0,0.00014916,2]
[400146553,1767153043935,-2000.0,0.00014916,2]
[400146554,1767153043944,-2000.0,0.00014916,2]
[400146555,1767153043953,-2000.0,0.00014916,2]
[400146556,1767153043962,-2000.0,0.00014916,2]
[400146557,1767153043971,-2000.0,0.00014916,2]
[400146558,1767153043980,-2000.0,0.00014916,2]
[400146559,1767153043990,-2000.0,0.00014916,2]
[400146560,1767153043999,-685.55855892,0.00014916,2]
[400146561,1767153044009,-2000.0,0.00014916,2]
[400146562,1767153044018,-1079.52271368,0.00014916,2]
[400146563,1767153044027,-1431.23584985,0.00014916,2]
[400146564,1767153044036,-424.40432946,0.00014916,2]
[400146565,1767153044046,-2000.0,0.00014916,2]
[400146566,1767153044056,-2000.0,0.00014916,2]
[400146567,1767153044076,-907.44622604,0.00014992,2]
[400146568,1767153044085,-100000.0,0.00015028,2]
[400146569,1767153044094,-181.299206,0.00015068,2]
[400146570,1767153044103,-803.5950816,0.00015068,2]
[400146571,1767153044112,-2896.55,0.00015111,2]
[400146572,1767153044122,-151.0,0.000152,2]
[400146573,1767153044131,-151.0,0.00015316,2]
[400146574,1767153044140,-158.312179,0.00015316,2]
[400146575,1767153044149,-1200.0,0.00015316,2]
[400146576,1767153044159,-499.794244,0.00015342,2]
[400146577,1767153044168,-499.794244,0.00015342,2]
[400146578,1767153044178,-499.794244,0.00015342,2]
[400146579,1767153044187,-499.794244,0.00015342,2]
[400146580,1767153044197,-194.747586,0.00015342,2]
[400146581,1767153044206,-194.747586,0.00015342,2]
[400146582,1767153044216,-194.747586,0.00015342,2]
[400146583,1767153044228,-194.747586,0.00015342,2]
[400146584,1767153044244,-151.0,0.00015342,2]
[400146585,1767153044254,-151.0,0.00015342,2]
[400146586,1767153044263,-909.51288327,0.00015342,2]
[400146587,1767153044273,-2000.0,0.00015342,2]
[400146588,1767153044282,-1655.66749295,0.00015342,2]
[400146589,1767153044291,-503.1340869,0.00015342,2]
[400146590,1767153044301,-682.49603851,0.00015342,2]
[400146591,1767153044310,-157.67215419,0.00015342,2]
[400146592,1767153044320,-288.21762562,0.00015342,2]
[400146593,1767153044329,-402.01463508,0.00015342,2]
[400146594,1767153044339,-1165.86238698,0.00015342,2]
[400146595,1767153044348,-2000.0,0.00015342,2]
[400146596,1767153044358,-2000.0,0.00015342,2]
[400146597,1767153044367,-2000.0,0.00015342,2]
[400146598,1767153044376,-2000.0,0.00015342,2]
[400146599,1767153044385,-2018.84773542,0.00015342,2]
[400146600,1767153044396,-1009.61748521,0.00015342,2]
[400146601,1767153044406,-915.94669576,0.00015342,2]
[400146602,1767153044415,-2000.0,0.00015342,2]
[400146603,1767153044425,-1510.33134929,0.00015342,2]
[400146604,1767153044434,-2000.0,0.00015342,2]
[400146605,1767153044444,-2000.0,0.00015342,2]
[400146606,1767153044453,-2000.0,0.00015342,2]
[400146607,1767153044462,-1636.69571136,0.00015342,2]
[400146608,1767153044472,-2000.0,0.00015342,2]
[400146609,1767153044482,-2000.0,0.00015342,2]
[400146610,1767153044491,-2000.0,0.00015342,2]
[400146611,1767153044501,-2000.0,0.00015342,2]
[400146612,1767153044510,-2000.0,0.00015342,2]
[400146613,1767153044519,-2000.0,0.00015342,2]
[400146614,1767153044528,-2000.0,0.00015342,2]
[400146615,1767153044538,-2000.0,0.00015342,2]
[400146616,1767153044547,-2000.0,0.00015342,2]
[400146617,1767153044557,-2000.0,0.00015342,2]
[400146618,1767153044566,-922.85192268,0.00015342,2]
[400146619,1767153044576,-1504.79599952,0.00015342,2]
[400146620,1767153044585,-2000.0,0.00015342,2]
[400146621,1767153044595,-1104.13585388,0.00015342,2]
[400146622,1767153044605,-1793.14415046,0.00015342,2]
[400146623,1767153044614,-2000.0,0.00015342,2]
[400146624,1767153044624,-1207.59767903,0.00015342,2]
[400146625,1767153044637,-2000.0,0.00015342,2]
[400146626,1767153044647,-2000.0,0.00015342,2]
[400146627,1767153044656,-2005.94817452,0.00015342,2]
[400146628,1767153044665,-2000.0,0.00015342,2]
[400146629,1767153044675,-1504.98936626,0.00015342,2]
[400146630,1767153044685,-2000.0,0.00015342,2]
[400146631,1767153044694,-1003.48898302,0.00015342,2]
[400146632,1767153044703,-533.88981491,0.0001537,2]
[400146633,1767153044712,-151.0,0.0001537,2]
[400146634,1767153044722,-2579.17784983,0.0001537,2]
[400146635,1767153044732,-11136.70501437,0.00015389,2]
[400146636,1767153044741,-2500.0,0.00015464,2]
[400146637,1767153044750,-2500.0,0.00015464,2]
[400146638,1767153044760,-2500.0,0.00015464,2]
[400146639,1767153044769,-2500.0,0.00015464,2]
[400146640,1767153044778,-2500.0,0.00015464,2]
[400146641,1767153044787,-478.35295088,0.00015464,2]
[400146642,1767153044796,-1849.32071924,0.00015464,2]
[400146643,1767153044806,-2500.0,0.00015464,2]
[400146644,1767153044815,-2500.0,0.00015464,2]
[400146645,1767153044826,-2500.0,0.00015464,2]
[400146646,1767153044835,-2500.0,0.00015464,2]
[400146647,1767153044844,-2500.0,0.00015464,2]
[400146648,1767153044853,-2500.0,0.00015464,2]
[400146649,1767153044862,-2500.0,0.00015464,2]
[400146650,1767153044872,-1770.44343412,0.00015464,2]
[400146651,1767153044882,-2500.0,0.00015464,2]
[400146652,1767153044892,-2500.0,0.00015464,2]
[400146653,1767153044901,-2500.0,0.00015464,2]
[400146654,1767153044911,-1003.81920107,0.00015464,2]
[400146655,1767153044920,-189.97563108,0.00015508,2]
[400146656,1767153044930,-3292.0,0.00015534,2]
[400146657,1767153044939,-250.0,0.00015578,2]
[400146658,1767153044948,-151.0,0.000156,2]
[400146659,1767153044957,-1608.0,0.00015607,2]
[400146660,1767153044967,-823.0,0.00015607,2]
[400146661,1767153044976,-500.0,0.00015634,2]
[400146662,1767153044985,-369.70412091,0.00015822,2]
[400146663,1767153044994,-1500.0,0.00015864,2]
[400146664,1767153045003,-651.60877791,0.0001589,2]
[400146665,1767153045014,-2500.0,0.0001589,2]
[400146666,1767153045023,-537.58100831,0.0001589,2]
[400146667,1767153045033,-1005.31532944,0.0001589,2]
[400146668,1767153045042,-1507.68801883,0.0001589,2]
[400146669,1767153045051,-903.04207638,0.0001589,2]
[400146670,1767153045060,-386.3706875,0.0001589,2]
[400146671,1767153045069,-1508.82384523,0.0001589,2]
[400146672,1767153045079,-504.59975832,0.0001589,2]
[400146673,1767153045088,-2005.23629678,0.0001589,2]
[400146674,1767153045097,-574.09930708,0.0001589,2]
[400146675,1767153045107,-503.64865922,0.0001589,2]
[400146676,1767153045116,-1498.45804599,0.0001589,2]
[400146677,1767153045125,-2500.0,0.0001589,2]
[400146678,1767153045135,-2500.0,0.0001589,2]
[400146679,1767153045144,-299.59970903,0.0001589,2]
[400146680,1767153045153,-1534.26049156,0.0001589,2]
[400146681,1767153045163,-418.31768676,0.0001589,2]
[400146682,1767153045172,-550.74198848,0.0001589,2]
[400146683,1767153045182,-379.37902934,0.0001589,2]
[400146684,1767153045191,-1002.53547853,0.0001589,2]
[400146685,1767153045201,-2000.65529052,0.0001589,2]
[400146686,1767153045210,-480.71714518,0.0001589,2]
[400146687,1767153045220,-942.31574179,0.0001589,2]
[400146688,1767153045229,-2500.0,0.0001589,2]
[400146689,1767153045239,-553.64373807,0.00015918,2]
[400146690,1767153045249,-151.68521952,0.00015918,2]
[400146691,1767153045258,-2674.60743027,0.00015918,2]
[400146692,1767153045268,-151.0,0.00016,2]
[400146693,1767153045278,-1000.0,0.00016005,2]
[400146694,1767153045287,-3000.0,0.00016012,2]
[400146695,1767153045297,-3000.0,0.00016012,2]
[400146696,1767153045306,-2008.62893178,0.00016012,2]
[400146697,1767153045315,-3000.0,0.00016012,2]
[400146698,1767153045325,-3000.0,0.00016012,2]
[400146699,1767153045334,-260.55819049,0.00016012,2]
[400146700,1767153045343,-3000.0,0.00016012,2]
[400146701,1767153045353,-3000.0,0.00016012,2]
[400146702,1767153045361,-3000.0,0.00016012,2]
[400146703,1767153045370,-869.66779668,0.00016012,2]
[400146704,1767153045379,-3000.0,0.00016012,2]
[400146705,1767153045388,-695.74962431,0.00016012,2]
[400146707,1767153045398,-3000.0,0.00016012,2]
[400146708,1767153045407,-3000.0,0.00016012,2]
[400146710,1767153045415,-3000.0,0.00016012,2]
[400146711,1767153045424,-3862.07,0.00016274,2]
[400146712,1767153045433,-907.44622604,0.00016385,2]
[400146713,1767153045442,-50000.0,0.000164,2]
[400146714,1767153045452,-1808.97595015,0.00016412,2]
[400146715,1767153045461,-3000.0,0.00016438,2]
[400146716,1767153045470,-1035.35417784,0.00016438,2]
[400146717,1767153045480,-3000.0,0.00016438,2]
[400146718,1767153045490,-3000.0,0.00016438,2]
[400146719,1767153045499,-500.0,0.00016457,2]
[400146720,1767153045508,-574.12855637,0.00016466,2]
[400146721,1767153045518,-2773.56790519,0.00016466,2]
[400146722,1767153045528,-200.0,0.00016473,2]
[400146723,1767153045538,-3500.0,0.0001656,2]
[400146724,1767153045547,-3500.0,0.0001656,2]
[400146725,1767153045556,-360.16624078,0.0001656,2]
[400146726,1767153045565,-3500.0,0.0001656,2]
[400146727,1767153045575,-3005.99987486,0.0001656,2]
[400146728,1767153045585,-3500.0,0.0001656,2]
[400146729,1767153045594,-3500.0,0.0001656,2]
[400146730,1767153045603,-3500.0,0.0001656,2]
[400146731,1767153045613,-3500.0,0.0001656,2]
[400146732,1767153045623,-3500.0,0.0001656,2]
[400146733,1767153045636,-3500.0,0.0001656,2]
[400146734,1767153045646,-1182.62181526,0.00016775,2]
[400146735,1767153045655,-151.0,0.000168,2]
[400146736,1767153045664,-308.2133853,0.00016986,2]
[400146738,1767153045674,-3500.0,0.00016986,2]
[400146739,1767153045684,-3500.0,0.00016986,2]
[400146741,1767153045694,-595.37131296,0.00017014,2]
[400146742,1767153045704,-4609.0,0.00017088,2]
[400146743,1767153045714,-194.747586,0.00017108,2]
[400146744,1767153045723,-194.747586,0.00017108,2]
[400146745,1767153045732,-194.747586,0.00017108,2]
[400146746,1767153045741,-194.747586,0.00017108,2]
[400146747,1767153045750,-2347.53001016,0.00017108,2]
[400146749,1767153045871,-4000.0,0.00017108,2]
[400146750,1767153045881,-3526.72831681,0.00017108,2]
[400146751,1767153045891,-1576.89571839,0.00017108,2]
[400146752,1767153045901,-4000.0,0.00017108,2]
[400146753,1767153045910,-4000.0,0.00017108,2]
[400146754,1767153045919,-1858.98056114,0.00017108,2]
[400146755,1767153045929,-1170.57654237,0.00017108,2]
[400146756,1767153045938,-4000.0,0.00017108,2]
[400146757,1767153045948,-2331.46222238,0.00017121,2]
[400146758,1767153045958,-1152.0,0.00017137,2]
[400146759,1767153045967,-151.0,0.00017284,2]
[400146760,1767153045977,-151.0,0.00017284,2]
[400146761,1767153045987,-500.0,0.00017323,2]
[400146762,1767153045996,-258.99381174,0.00017394,2]
[400146763,1767153046005,-10459.66723984,0.000174,3]
[400146764,1767153046886,-3e-08,0.00012329,2]
[400146765,1767153047107,-397.55999997,0.00012329,2]
[400146766,1767153047117,-203.66759734,0.00013561,2]
[400146767,1767153047136,-4796.33240266,0.00013561,2]
[400146768,1767153047147,-6729.22451076,0.000174,3]
[400146769,1767153047315,-1012.75473193,0.000174,3]
[400146770,1767153047326,-950.13,0.000174,3]
[400146771,1767153096471,449.01230765,0.0001169,2]
[400146772,1767153096508,394.03154808,0.0001169,2]
[400146773,1767153105030,500.0,0.0001169,2]
[400146774,1767153122812,500.0,0.0001169,2]
[400146775,1767153140612,500.0,0.0001169,2]
[400146776,1767153153773,9000.01,0.00011591,2]
[400146777,1767153153800,10000.01,0.00011591,2]
[400146778,1767153153825,10000.01,0.00011591,2]
[400146779,1767153153849,10000.01,0.00011591,2]
[400146780,1767153153874,10000.01,0.00011591,2]
[400146781,1767153153897,10000.01,0.00011591,2]
[400146782,1767153153919,10000.01,0.00011591,2]
[400146783,1767153153942,10000.01,0.00011591,2]
[400146785,1767153182304,300.0,0.0001159,2]
[400146786,1767153242367,300.0,0.0001159,2]
[400146787,1767153267879,5000.0,0.00011591,2]
[400146788,1767153272887,500.0,0.0001159,2]
[400146789,1767153273142,500.0,0.0001159,2]
[400146790,1767153273209,500.0,0.0001159,2]
[400146791,1767153273241,500.0,0.0001159,2]
[400146792,1767153273278,500.0,0.0001159,2]
[400146793,1767153273316,500.0,0.0001159,2]
[400146794,1767153273353,500.0,0.0001159,2]
[400146795,1767153273389,232.15517185,0.0001159,2]
[400146796,1767153273423,500.0,0.0001159,2]
[400146797,1767153273458,167.85482815,0.0001159,2]
[400146798,1767153273481,332.14517185,0.0001159,2]
[400146799,1767153283646,1479.09,0.00011591,2]
[400146800,1767153291533,5000.0,0.00011591,2]
[400146801,1767153301385,300.0,0.0001159,2]
[400146802,1767153302112,300.0,0.0001159,2]
[400146803,1767153306095,300.0,0.0001159,2]
[400146804,1767153309253,1200.0,0.0001159,2]
[400146805,1767153316077,1088.77482815,0.00011591,2]
[400146806,1767153316101,3911.22517185,0.00011591,2]
[400146807,1767153339347,5000.0,0.00011591,2]
[400146808,1767153362554,300.0,0.0001159,2]
[400146809,1767153362585,788.78482815,0.00011591,2]
[400146810,1767153362609,4211.21517185,0.00011591,2]
[400146811,1767153364299,-553.43017938,0.00011591,2]
[400146812,1767153365839,-539.91987059,0.00011591,2]
[400146813,1767153369586,-442.26531537,0.00011591,2]
[400146814,1767153371031,-237.53,0.00011591,2]
[400146815,1767153373015,-300.0,0.00011591,2]
[400146816,1767153375638,-360.90074197,0.00011591,2]
[400146817,1767153377785,-268.0,0.00011591,2]
[400146818,1767153382453,-628.878514,0.00011591,2]
[400146819,1767153385160,-316.69797374,0.00011591,2]
[400146820,1767153386015,4252.87537677,0.00011591,2]
[400146821,1767153386651,-227.19384157,0.00011591,2]
[400146822,1767153393708,-346.55133339,0.00011591,2]
[400146823,1767153397010,-318.98366305,0.00011591,2]
[400146824,1767153400046,-338.13897447,0.00011591,2]
[400146825,1767153408905,1535.91945138,0.00011591,2]
[400146826,1767153408928,11.64633484,0.00011591,2]
[400146827,1767153410418,-429.67340734,0.00011591,2]
[400146828,1767153412605,-352.42443258,0.00011591,2]
[400146829,1767153422290,300.0,0.0001159,2]
[400146830,1767153423695,-151.88,0.00011591,2]
[400146831,1767153425817,-340.33719739,0.00011591,2]
[400146832,1767153432649,1274.31503731,0.00011591,2]
[400146833,1767153441108,500.0,0.00028767,120]
[400146835,1767153483018,300.0,0.0001159,2]
[400146836,1767153492956,1200.0,0.0001159,2]
[400146847,1767153542344,300.0,0.0001159,2]
[400146875,1767153602520,300.0,0.0001159,2]
[400146876,1767153606118,191.0,0.0001159,2]
[400146877,1767153609248,1200.0,0.0001159,2]
[400146878,1767153625720,572.0392103,0.00010959,2]
[400146879,1767153638841,296.31950836,0.0001159,2]
[400146880,1767153638876,500.0,0.0001159,2]
[400146881,1767153638945,500.0,0.0001159,2]
[400146882,1767153639055,273.95233224,0.0001159,2]
[400146886,1767153662368,300.0,0.0001159,2]
[400146887,1767153722332,300.0,0.0001159,2]
[400146889,1767153782310,300.0,0.0001159,2]
[400146890,1767153793546,1200.0,0.0001159,2]
[400146899,1767153811114,190.3949265,0.00011219,2]
[400146905,1767153842598,300.0,0.0001159,2]
[400146906,1767153902536,190.34265045,0.0001159,2]
[400146907,1767153902562,109.65734955,0.0001159,2]
[400146910,1767153909465,1200.0,0.0001159,2]
[400146914,1767153962871,300.0,0.0001159,2]
[400146919,1767154017136,-2269.0781062,0.00011591,2]
[400146920,1767154022667,300.0,0.0001159,2]
[400146923,1767154031216,258.99381174,0.0001159,2]
[400146924,1767154041095,-24100.96266093,0.00011591,2]
[400146925,1767154063943,500.0,0.00028767,120]
[400146927,1767154079465,366.36,9.99e-05,2]
[400146928,1767154079828,366.36,9.99e-05,2]
[400146929,1767154082281,300.0,0.0001159,2]
[400146930,1767154093475,1200.0,0.0001159,2]
[400146936,1767154126934,507.1640978,0.00010948,2]
[400146939,1767154136403,421.2956567,0.000287,120]
[400146941,1767154142672,300.0,0.0001159,2]
[400146945,1767154149314,1526.3857125,0.00011035,2]
[400146950,1767154160084,-62619.74453529,0.00011591,2]
[400146951,1767154160106,-273.64115762,0.00011591,2]
[400146952,1767154160127,-583.0,0.00011591,2]
[400146953,1767154160151,-500.0,0.0001182,2]
[400146954,1767154160174,-207.42365585,0.0001182,2]
[400146955,1767154160194,-101.49361553,0.0001182,2]
[400146959,1767154170083,299.84,0.00028767,120]
[400146960,1767154171089,-167.48741991,0.00011776,2]